bitfinex/quotes_BTCUSD_20260308
["timestamp","ask_amount","ask_price","bid_price","bid_amount"]
[1772945392609,0.00015,66872.0,66862.0,0.0787936]
[1772945392740,0.00015,66872.0,66863.0,0.00152]
[1772945393145,0.00022001,66875.0,66864.0,0.00401271]
[1772945393419,0.02340553,66879.0,66865.0,0.00399628]
[1772945394164,0.02340553,66878.0,66866.0,0.00152]
[1772945394334,0.02340553,66877.0,66866.0,0.00152]
[1772945395743,0.02340553,66877.0,66867.0,0.0747753]
[1772945395943,0.07476065,66881.0,66867.0,0.0747753]
[1772945396144,0.09816618,66881.0,66867.0,0.07874009]
[1772945396342,0.02340553,66880.0,66867.0,0.0747753]
[1772945396547,0.02340553,66879.0,66867.0,0.0747753]
[1772945398578,0.0981675,66879.0,66867.0,0.0747753]
[1772945399090,0.02340553,66878.0,66867.0,0.0747753]
[1772945399248,0.02340553,66877.0,66867.0,0.0747753]
[1772945399454,0.02340553,66874.0,66868.0,0.00152]
[1772945399678,0.02913294,66871.0,66868.0,0.00152]
[1772945399882,0.05253847,66869.0,66868.0,0.00152]
[1772945400323,0.02340553,66869.0,66868.0,0.00152]
[1772945400592,0.07476076,66880.0,66868.0,0.00152]
[1772945401714,0.04937222,66879.0,66868.0,0.00152]
[1772945401923,0.04470395,66876.0,66851.0,0.0002]
[1772945402121,0.04470395,66870.0,66845.0,0.0749996]
[1772945402321,6.601e-05,66876.0,66838.0,0.00035]
[1772945402322,0.04470395,66860.0,66838.0,0.00035]
[1772945402505,0.00152,66859.0,66838.0,0.0661203]
[1772945402705,0.02231014,66855.0,66840.0,0.04548784]
[1772945402910,0.02953234,66852.0,66841.0,0.00152]
[1772945403267,0.02231014,66848.0,66841.0,0.00152]
[1772945403444,0.02231014,66848.0,66840.0,0.0748055]
[1772945403748,0.02231014,66848.0,66842.0,0.00152]
[1772945403921,0.02237609,66848.0,66840.0,0.0748055]
[1772945404128,0.02237609,66848.0,66843.0,0.00152]
[1772945404498,0.02222309,66848.0,66843.0,0.00152]
[1772945404709,0.02207008,66848.0,66843.0,0.00152]
[1772945405354,0.02191705,66848.0,66843.0,0.00152]
[1772945405815,0.02191705,66848.0,66843.0,0.07632184]
[1772945406226,6.595e-05,66848.0,66843.0,0.07632184]
[1772945407189,6.595e-05,66848.0,66843.0,0.00152]
[1772945407591,0.07479371,66851.0,66843.0,0.00152]
[1772945407799,0.07479371,66851.0,66843.0,0.0764236]
[1772945408317,0.07479371,66851.0,66843.0,0.00162173]
[1772945408688,0.02336305,66850.0,66843.0,0.00162173]
[1772945409095,0.07479543,66849.0,66843.0,0.00162173]
[1772945409298,0.09815848,66849.0,66843.0,0.00162173]
[1772945411198,0.09815848,66849.0,66843.0,0.00010173]
[1772945411402,0.09815848,66849.0,66843.0,0.00162173]
[1772945411937,0.09800547,66849.0,66843.0,0.00182173]
[1772945414473,0.07479074,66854.0,66843.0,0.00182173]
[1772945414675,0.07479074,66854.0,66843.0,0.0766235]
[1772945414976,0.07479074,66854.0,66843.0,0.10432542]
[1772945417235,0.02336305,66854.0,66843.0,0.0766235]
[1772945417552,0.02321305,66854.0,66843.0,0.0766235]
[1772945417959,0.02321305,66854.0,66843.0,0.00182173]
[1772945418180,0.02953234,66854.0,66843.0,0.00182173]
[1772945418405,0.02336305,66853.0,66843.0,0.00182173]
[1772945418912,0.02336305,66853.0,66843.0,0.07662376]
[1772945419688,0.02336305,66851.0,66843.0,0.07662376]
[1772945420078,0.02336305,66851.0,66843.0,0.00182173]
[1772945420275,0.02336305,66851.0,66844.0,0.00152]
[1772945421194,0.02336305,66851.0,66843.0,0.00030173]
[1772945421195,0.02336305,66851.0,66843.0,0.07510368]
[1772945421396,0.02336305,66851.0,66845.0,0.00152]
[1772945421908,0.07479431,66850.0,66845.0,0.00152]
[1772945422113,0.02336305,66849.0,66845.0,0.07631973]
[1772945422643,0.02336305,66849.0,66845.0,0.00152]
[1772945423212,0.07479431,66850.0,66845.0,0.00152]
[1772945423934,0.02336305,66851.0,66845.0,0.00152]
[1772945425306,0.02321002,66851.0,66845.0,0.00152]
[1772945425948,0.07479431,66850.0,66843.0,0.07510356]
[1772945426140,0.07479431,66850.0,66846.0,0.00152]
[1772945427030,0.07479207,66852.0,66846.0,0.00152]
[1772945427565,0.0746391,66852.0,66846.0,0.00152]
[1772945428248,0.0756391,66852.0,66846.0,0.00152]
[1772945429944,0.0756391,66852.0,66843.0,0.07510356]
[1772945430193,0.02336305,66851.0,66847.0,0.00152]
[1772945430312,0.07479431,66850.0,66847.0,0.00152]
[1772945431553,0.0746391,66852.0,66847.0,0.00152]
[1772945431802,0.001,66850.0,66847.0,0.00152]
[1772945432685,0.02436305,66850.0,66847.0,0.00152]
[1772945433703,0.07479543,66849.0,66847.0,0.00152]
[1772945434065,0.07464242,66849.0,66847.0,0.00152]
[1772945434477,0.07464242,66849.0,66843.0,0.00030173]
[1772945434703,0.07464242,66849.0,66848.0,0.00152]
[1772945434870,0.07564242,66849.0,66848.0,0.00152]
[1772945435485,0.07564242,66849.0,66843.0,0.00030173]
[1772945435705,0.07564242,66849.0,66848.0,0.00152]
[1772945436020,0.07564242,66849.0,66843.0,0.00030173]
[1772945436223,0.07564242,66849.0,66848.0,0.00152]
[1772945436525,0.07564242,66849.0,66843.0,0.07510383]
[1772945436666,0.07464242,66849.0,66848.0,0.00152]
[1772945436867,0.07564242,66849.0,66848.0,0.00152]
[1772945437314,0.07564242,66849.0,66843.0,0.07510383]
[1772945437620,0.07479433,66850.0,66844.0,0.00152]
[1772945437800,0.07479433,66850.0,66843.0,0.07510383]
[1772945437992,0.07479433,66850.0,66844.0,0.00152]
[1772945438365,0.07479433,66850.0,66845.0,0.00152]
[1772945438617,0.0747928,66852.0,66845.0,0.00152]
[1772945438882,0.0747928,66852.0,66846.0,0.00152]
[1772945439443,0.0747928,66852.0,66847.0,0.00152]
[1772945439827,0.0747928,66852.0,66843.0,0.07510383]
[1772945439995,0.0747928,66852.0,66844.0,0.00152]
[1772945440395,0.0747928,66852.0,66845.0,0.00152]
[1772945440893,0.0747928,66852.0,66846.0,0.00152]
[1772945441338,0.07479095,66853.0,66843.0,0.07510383]
[1772945441517,0.07479095,66853.0,66844.0,0.00152]
[1772945441933,0.07479095,66853.0,66845.0,0.00152]
[1772945442289,0.09735837,66853.0,66845.0,0.00152]
[1772945442679,0.09735837,66853.0,66845.0,0.0002]
[1772945442816,0.09735837,66853.0,66846.0,0.00152]
[1772945443029,0.00022001,66852.0,66846.0,0.00152]
[1772945443222,0.00022001,66852.0,66845.0,0.0002]
[1772945443429,0.02278743,66852.0,66846.0,0.00152]
[1772945443728,0.09736061,66851.0,66845.0,0.0002]
[1772945443948,0.09736061,66851.0,66846.0,0.00152]
[1772945444617,0.09736061,66851.0,66845.0,0.0002]
[1772945444817,0.09736061,66851.0,66847.0,0.00152]
[1772945445218,0.09736061,66851.0,66848.0,0.00152]
[1772945445418,0.07479319,66851.0,66848.0,0.00152]
[1772945445622,0.07479319,66851.0,66845.0,0.0002]
[1772945445828,0.07479319,66851.0,66848.0,0.00152]
[1772945446022,0.09736061,66851.0,66848.0,0.00152]
[1772945447121,0.09736061,66851.0,66845.0,0.0002]
[1772945447332,0.09736061,66851.0,66848.0,0.00152]
[1772945447916,0.02256742,66849.0,66847.0,0.00152]
[1772945448780,0.02256742,66849.0,66843.0,0.00030173]
[1772945449019,0.02256742,66849.0,66846.0,0.00152]
[1772945449846,0.02256742,66847.0,66843.0,0.00030173]
[1772945450033,0.02256742,66847.0,66846.0,0.00152]
[1772945450239,0.02256742,66847.0,66845.0,0.00152]
[1772945450457,0.07479576,66849.0,66845.0,0.00152]
[1772945450637,0.02256742,66848.0,66845.0,0.00152]
[1772945451289,0.07479576,66849.0,66845.0,0.00152]
[1772945451467,0.07479543,66850.0,66845.0,0.00152]
[1772945452011,0.07479543,66850.0,66824.0,0.05149627]
[1772945452197,0.02256742,66839.0,66825.0,0.00051988]
[1772945452396,0.0447562,66840.0,66825.0,0.00051988]
[1772945452397,0.02256742,66837.0,66825.0,0.00051988]
[1772945452546,0.00152,66838.0,66825.0,0.00051988]
[1772945452547,0.02799526,66836.0,66825.0,0.00051988]
[1772945452748,0.02256742,66833.0,66822.0,0.0002958]
[1772945452973,0.02256742,66833.0,66822.0,0.00036175]
[1772945453176,0.00152,66832.0,66822.0,0.00036175]
[1772945453378,0.02256742,66831.0,66822.0,0.00036175]
[1772945454066,0.02256742,66829.0,66822.0,0.00036175]
[1772945456217,0.09738635,66828.0,66822.0,0.00036175]
[1772945456420,0.02256742,66827.0,66822.0,0.00036175]
[1772945458365,0.07482117,66826.0,66822.0,0.00036175]
[1772945458771,0.09738859,66826.0,66822.0,0.00036175]
[1772945459124,0.07482117,66826.0,66822.0,0.00036175]
[1772945459338,0.07482117,66826.0,66822.0,0.00056175]
[1772945459539,0.07582117,66826.0,66822.0,0.00056175]
[1772945459895,0.05225375,66826.0,66822.0,0.00056175]
[1772945460248,0.05325375,66826.0,66822.0,0.00056175]
[1772945460454,0.001,66826.0,66822.0,0.00056175]
[1772945461340,0.07481967,66828.0,66822.0,0.00056175]
[1772945461747,0.07582168,66826.0,66822.0,0.00056175]
[1772945461943,0.001,66826.0,66822.0,0.00056175]
[1772945462168,0.07582143,66826.0,66822.0,0.00056175]
[1772945462476,0.07482143,66826.0,66822.0,0.00056175]
[1772945463282,0.07582143,66826.0,66822.0,0.00208175]
[1772945463492,0.09896929,66826.0,66821.0,0.00015]
[1772945463707,0.09908959,66826.0,66821.0,0.00056554]
[1772945464090,0.07594173,66826.0,66821.0,0.00056554]
[1772945464298,0.02314786,66825.0,66812.0,0.07483653]
[1772945464640,0.02314786,66825.0,66808.0,0.07504096]
[1772945464641,0.02314786,66825.0,66814.0,0.00152]
[1772945465045,0.02314786,66825.0,66809.0,0.00575]
[1772945465245,0.02314786,66825.0,66810.0,0.00152]
[1772945465652,0.02314786,66825.0,66811.0,0.00152]
[1772945466055,0.02314786,66825.0,66809.0,0.00385622]
[1772945466056,0.02314786,66823.0,66809.0,0.00385622]
[1772945466263,0.02314786,66818.0,66808.0,0.0002]
[1772945466417,0.02314786,66817.0,66804.0,0.0708838]
[1772945466828,0.02314786,66816.0,66804.0,0.0708838]
[1772945467029,0.02314786,66816.0,66805.0,1.392e-05]
[1772945467227,0.02314786,66823.0,66806.0,0.02289541]
[1772945467505,0.02314786,66823.0,66807.0,0.02776024]
[1772945468035,0.02534985,66820.0,66805.0,0.07485836]
[1772945468235,0.02314786,66819.0,66805.0,1.392e-05]
[1772945468435,0.0447562,66815.0,66788.0,0.07486274]
[1772945468682,0.0447562,66815.0,66790.0,0.00152]
[1772945468683,0.0447562,66810.0,66790.0,0.00152]
[1772945468843,0.0447562,66810.0,66789.0,0.07515805]
[1772945469046,0.0447562,66810.0,66791.0,0.00152]
[1772945469693,0.02208356,66812.0,66792.0,0.02242822]
[1772945469890,0.0447562,66820.0,66792.0,0.00152]
[1772945469891,0.00152,66811.0,66792.0,0.00152]
[1772945470092,0.09692258,66812.0,66793.0,0.07485814]
[1772945470307,0.07483349,66815.0,66793.0,0.07485814]
[1772945470506,0.02208356,66813.0,66793.0,0.07485814]
[1772945470707,0.02208356,66813.0,66789.0,0.0002958]
[1772945470708,0.0447562,66810.0,66789.0,0.0002958]
[1772945470910,0.07483349,66815.0,66787.0,0.07486385]
[1772945471244,0.07483349,66815.0,66793.0,0.02242822]
[1772945471372,0.07483349,66815.0,66796.0,0.02776024]
[1772945471573,0.07483349,66815.0,66799.0,0.02242822]
[1772945471799,0.07483349,66815.0,66802.0,0.02776024]
[1772945471997,0.07483349,66815.0,66803.0,0.00152]
[1772945472232,0.07483349,66815.0,66789.0,0.17908]
[1772945472233,0.02208356,66815.0,66789.0,0.17908]
[1772945472566,0.02208356,66815.0,66800.0,0.02242822]
[1772945472735,0.02208356,66815.0,66801.0,0.02928024]
[1772945473502,0.07483461,66814.0,66802.0,0.02776024]
[1772945474592,0.07483461,66814.0,66803.0,0.02776024]
[1772945475409,0.02534985,66823.0,66801.0,0.07636852]
[1772945475410,0.07482453,66824.0,66805.0,0.02776024]
[1772945475643,0.07522341,66825.0,66807.0,0.07484245]
[1772945475807,0.07522341,66825.0,66808.0,0.00152]
[1772945476328,0.0001203,66826.0,66808.0,0.00152]
[1772945476683,0.07481929,66828.0,66808.0,0.00152]
[1772945476884,0.07481929,66828.0,66808.0,0.0016403]
[1772945477310,0.07481929,66828.0,66809.0,0.05018846]
[1772945477514,0.07481696,66830.0,66808.0,0.0016403]
[1772945477714,0.07481696,66830.0,66810.0,0.07483909]
[1772945477923,0.07481696,66830.0,66811.0,0.02776024]
[1772945478098,0.07481696,66830.0,66810.0,0.07483909]
[1772945478436,0.07481696,66830.0,66811.0,0.05018846]
[1772945478937,0.07481696,66830.0,66810.0,0.07483909]
[1772945479759,0.07481696,66830.0,66813.0,0.02242822]
[1772945479895,0.09689949,66831.0,66815.0,0.02242822]
[1772945480096,0.02208356,66830.0,66816.0,0.02776024]
[1772945480435,0.07481593,66831.0,66816.0,0.02776024]
[1772945480651,0.07480696,66839.0,66817.0,0.02242822]
[1772945480795,0.07480932,66837.0,66815.0,0.02242822]
[1772945480999,0.0805604,66836.0,66818.0,0.02776024]
[1772945481344,0.00022001,66833.0,66820.0,0.02776024]
[1772945481547,0.00022001,66833.0,66821.0,0.00152]
[1772945481724,0.00022001,66833.0,66822.0,0.07482565]
[1772945482251,0.00022001,66833.0,66823.0,0.00152]
[1772945483352,0.00022001,66833.0,66824.0,0.00152]
[1772945483762,0.00022001,66833.0,66825.0,0.00152]
[1772945484976,0.00022001,66833.0,66826.0,0.07482117]
[1772945486296,0.08056083,66836.0,66826.0,0.10258141]
[1772945486712,0.00575,66836.0,66826.0,0.10258141]
[1772945486893,0.00575,66836.0,66826.0,0.07482117]
[1772945486894,0.08056023,66836.0,66826.0,0.07482117]
[1772945487097,0.02208356,66835.0,66827.0,0.00152]
[1772945487262,0.02208356,66835.0,66828.0,0.00152]
[1772945487795,0.08056023,66836.0,66828.0,0.00152]
[1772945489902,0.00575,66836.0,66829.0,0.10257805]
[1772945490586,0.00575,66836.0,66829.0,0.07481781]
[1772945490587,0.08056015,66836.0,66829.0,0.07481781]
[1772945490969,0.00575,66836.0,66829.0,0.07481781]
[1772945491380,0.07502352,66842.0,66832.0,0.02776024]
[1772945491983,0.07502352,66842.0,66831.0,0.02242822]
[1772945491984,0.07502352,66842.0,66833.0,0.07481334]
[1772945492570,0.07480116,66844.0,66835.0,0.02650244]
[1772945493334,0.07480116,66844.0,66834.0,0.00152]
[1772945494525,0.07480116,66844.0,66834.0,0.07633176]
[1772945495966,0.07480116,66844.0,66834.0,0.1028342]
[1772945496171,0.07630001,66850.0,66837.0,0.02242822]
[1772945496368,0.07630001,66850.0,66834.0,0.07633176]
[1772945496369,0.07642042,66850.0,66840.0,0.02650244]
[1772945496577,0.07642042,66850.0,66839.0,0.07480662]
[1772945496943,0.00162571,66850.0,66839.0,0.07480662]
[1772945497147,0.00162571,66850.0,66839.0,0.10130906]
[1772945498836,0.07642028,66850.0,66839.0,0.10130906]
[1772945499023,0.02253439,66858.0,66839.0,0.07480662]
[1772945499232,0.02253439,66858.0,66840.0,0.04926166]
[1772945499434,0.02253439,66858.0,66839.0,0.07492703]
[1772945499635,0.02253439,66858.0,66841.0,0.23030166]
[1772945499936,0.02253439,66858.0,66841.0,0.20602244]
[1772945500140,0.02253439,66858.0,66842.0,0.00152]
[1772945500293,0.00022001,66851.0,66842.0,0.00152]
[1772945500494,0.00022001,66851.0,66843.0,0.00152]
[1772945500711,0.00022001,66851.0,66844.0,0.07480102]
[1772945501136,0.00022001,66851.0,66845.0,0.00152]
[1772945501459,0.00022001,66851.0,66846.0,0.00152]
[1772945501979,0.00022001,66851.0,66847.0,0.00152]
[1772945502456,0.00022001,66851.0,66848.0,0.00152]
[1772945503039,0.07500602,66858.0,66849.0,0.07479543]
[1772945503779,0.00015,66855.0,66849.0,0.07479543]
[1772945505629,0.07500602,66858.0,66849.0,0.07479543]
[1772945505829,0.00022001,66858.0,66849.0,0.12405709]
[1772945506433,1.471e-05,66858.0,66849.0,0.12405709]
[1772945506633,0.05127561,66859.0,66849.0,0.12405709]
[1772945506865,0.07500211,66861.0,66850.0,0.04926166]
[1772945507041,0.00022001,66861.0,66850.0,0.02275922]
[1772945507249,0.00022001,66861.0,66849.0,0.07479543]
[1772945507472,0.00022001,66861.0,66852.0,0.04926166]
[1772945508310,0.00022001,66861.0,66851.0,0.07479319]
[1772945508520,0.07500253,66861.0,66851.0,0.07479319]
[1772945508720,0.00022001,66858.0,66851.0,0.07479319]
[1772945509278,0.00022001,66861.0,66851.0,0.07479319]
[1772945511342,0.07500238,66861.0,66851.0,0.07479319]
[1772945511556,0.00022001,66861.0,66852.0,0.181]
[1772945513121,0.00152001,66860.0,66852.0,0.23026166]
[1772945513318,0.00152001,66860.0,66852.0,0.181]
[1772945514043,0.02253439,66859.0,66853.0,0.07479095]
[1772945514306,0.02253439,66859.0,66854.0,0.00152]
[1772945515989,0.02253439,66859.0,66855.0,0.07478872]
[1772945516198,0.00152001,66858.0,66855.0,0.07478872]
[1772945516880,0.00152001,66858.0,66856.0,0.00152]
[1772945517086,0.0240544,66858.0,66856.0,0.00152]
[1772945517804,0.00152001,66858.0,66856.0,0.00152]
[1772945518333,0.00022001,66860.0,66856.0,0.0763075]
[1772945518534,0.0003053,66866.0,66856.0,0.0763075]
[1772945519095,0.0003053,66866.0,66856.0,0.10280994]
[1772945519296,0.00022001,66868.0,66859.0,0.02275922]
[1772945519498,0.00022001,66868.0,66859.0,0.04926166]
[1772945520119,0.09752439,66872.0,66860.0,0.07478312]
[1772945520336,0.09752439,66872.0,66831.0,0.39165781]
[1772945520337,0.07499005,66872.0,66861.0,0.00152]
[1772945520687,0.07499005,66872.0,66856.0,0.17948]
[1772945520874,0.07499005,66872.0,66857.0,0.00152]
[1772945521068,0.02253439,66870.0,66857.0,0.00152]
[1772945521674,0.02422859,66869.0,66857.0,0.00152]
[1772945522248,0.09900277,66868.0,66858.0,0.07478536]
[1772945523436,0.02422859,66868.0,66858.0,0.07478536]
[1772945523638,0.0747725,66870.0,66858.0,0.12607454]
[1772945523857,0.07489289,66870.0,66858.0,0.12607454]
[1772945524371,0.00012039,66870.0,66859.0,0.05128918]
[1772945524555,0.0003404,66870.0,66859.0,0.05128918]
[1772945524934,0.0003404,66870.0,66858.0,0.07478536]
[1772945525141,0.0003404,66870.0,66859.0,0.00152]
[1772945525361,0.0003404,66870.0,66850.0,0.07479431]
[1772945525362,0.02496482,66869.0,66860.0,0.00152]
[1772945525558,0.0003404,66870.0,66861.0,0.00152]
[1772945525781,0.02422859,66868.0,66862.0,0.00152]
[1772945526099,0.02422859,66867.0,66863.0,0.00152]
[1772945526271,0.07477641,66866.0,66863.0,0.00152]
[1772945526484,0.02422859,66865.0,66863.0,0.00152]
[1772945526694,0.07477641,66866.0,66863.0,0.00152]
[1772945526993,0.02422859,66867.0,66863.0,0.00152]
[1772945527420,0.09900389,66867.0,66863.0,0.00152]
[1772945527766,0.07511458,66870.0,66863.0,0.00152]
[1772945530048,0.07511239,66870.0,66863.0,0.00152]
[1772945530351,0.01811207,66870.0,66863.0,0.07629958]
[1772945531103,0.01811207,66870.0,66863.0,0.00152]
[1772945532160,0.07477082,66871.0,66863.0,0.00152]
[1772945532363,0.07484279,66871.0,66863.0,0.00152]
[1772945532707,0.07499282,66870.0,66863.0,0.00152]
[1772945534234,0.01919534,66869.0,66863.0,0.00152]
[1772945534836,0.09396873,66869.0,66863.0,0.00152]
[1772945535232,0.00152,66868.0,66863.0,0.00152]
[1772945537507,0.00152,66868.0,66863.0,0.07629924]
[1772945538841,0.00152,66868.0,66863.0,0.07477924]
[1772945538985,0.00152,66868.0,66864.0,0.00152]
[1772945540107,0.00022001,66870.0,66864.0,0.00152]
[1772945542061,0.00304,66869.0,66864.0,0.00152]
[1772945542442,0.04680677,66871.0,66864.0,0.00152]
[1772945542640,0.04680677,66871.0,66864.0,0.0257168]
[1772945542838,0.04680677,66871.0,66864.0,0.00152]
[1772945547669,0.04680677,66871.0,66864.0,0.07629818]
[1772945548035,0.02223534,66870.0,66864.0,0.07629818]
[1772945549672,0.0719916,66871.0,66864.0,0.07629818]
[1772945550392,0.02496482,66869.0,66859.0,0.07478424]
[1772945550615,0.02496482,66869.0,66857.0,0.07498547]
[1772945550616,0.02496482,66869.0,66865.0,0.00152]
[1772945550784,0.02496482,66869.0,66866.0,0.00152]
[1772945551080,0.02496482,66869.0,66867.0,0.00152]
[1772945551284,0.09422694,66871.0,66868.0,0.00152]
[1772945551738,0.09270695,66871.0,66868.0,0.00152]
[1772945551916,0.09118696,66871.0,66868.0,0.00152]
[1772945554606,0.0439868,66871.0,66868.0,0.00152]
[1772945554813,0.04992907,66870.0,66868.0,0.00152]
[1772945555066,0.02223534,66870.0,66868.0,0.00152]
[1772945555210,0.09700762,66870.0,66868.0,0.00152]
[1772945555623,0.07477228,66870.0,66868.0,0.00152]
[1772945556577,0.0717323,66870.0,66869.0,0.00152]
[1772945557536,0.0717323,66870.0,66863.0,0.0002]
[1772945557737,0.0717323,66870.0,66864.0,0.00152]
[1772945559286,0.0717323,66870.0,66865.0,0.00152]
[1772945560686,0.0717323,66870.0,66863.0,0.0002]
[1772945561034,0.0717323,66870.0,66864.0,0.00152]
[1772945562067,0.0717323,66870.0,66863.0,0.0002]
[1772945562218,0.0717323,66870.0,66865.0,0.00152]
[1772945562743,0.05070507,66870.0,66865.0,0.00152]
[1772945563536,0.00022001,66871.0,66865.0,0.00152]
[1772945563959,0.00022001,66871.0,66865.0,0.00172]
[1772945564176,0.00022001,66871.0,66865.0,0.07649749]
[1772945564470,0.07499108,66871.0,66865.0,0.07649749]
[1772945566995,0.07499108,66871.0,66865.0,0.00172]
[1772945567566,0.07499108,66871.0,66865.0,0.0002]
[1772945567797,0.07499108,66871.0,66866.0,0.00152]
[1772945569568,0.07468492,66871.0,66866.0,0.00152]
[1772945569764,0.07513981,66872.0,66866.0,0.00152]
[1772945570008,0.04738541,66872.0,66867.0,0.02359346]
[1772945570184,0.01976161,66872.0,66867.0,0.02359346]
[1772945572422,0.07494535,66873.0,66867.0,0.02379346]
[1772945572804,0.00022001,66872.0,66867.0,0.02379346]
[1772945573026,0.00062001,66875.0,66867.0,0.09856823]
[1772945573257,0.07538636,66875.0,66867.0,0.09856823]
[1772945573795,0.00022001,66882.0,66867.0,0.09856823]
[1772945573796,0.00022001,66882.0,66868.0,0.02359346]
[1772945574094,0.00022001,66882.0,66867.0,0.07497477]
[1772945574095,0.02353754,66879.0,66869.0,0.00152]
[1772945574311,0.02769373,66878.0,66869.0,0.00152]
[1772945574511,0.02769373,66878.0,66867.0,0.07497477]
[1772945574714,0.02769373,66878.0,66868.0,0.00152]
[1772945575168,0.02769373,66878.0,66869.0,0.07477306]
[1772945575473,0.07476216,66879.0,66869.0,0.09836652]
[1772945575971,0.05375254,66879.0,66870.0,0.02359346]
[1772945577767,0.07476188,66880.0,66871.0,0.07477082]
[1772945578582,0.10245561,66880.0,66871.0,0.07477082]
[1772945580785,0.10267562,66880.0,66871.0,0.07477082]
[1772945580987,0.02769373,66879.0,66871.0,0.07477082]
[1772945581196,0.07498189,66880.0,66858.0,0.0002]
[1772945581197,0.02353754,66876.0,66858.0,0.0002]
[1772945581420,0.04472693,66870.0,66854.0,0.07478976]
[1772945581617,0.0447989,66870.0,66855.0,0.00152]
[1772945581771,0.0239133,66867.0,66854.0,0.07478976]
[1772945581989,0.02532654,66864.0,66855.0,0.00152]
[1772945582187,0.0447989,66870.0,66855.0,0.00152]
[1772945582188,0.02532654,66862.0,66855.0,0.00152]
[1772945583176,0.02728197,66861.0,66855.0,0.07630833]
[1772945584099,0.02728197,66861.0,66853.0,0.0002]
[1772945584325,0.02728197,66860.0,66853.0,0.07499069]
[1772945584534,0.02728197,66860.0,66854.0,0.00152]
[1772945585028,0.02728197,66860.0,66853.0,0.07499069]
[1772945585191,0.03034835,66860.0,66854.0,0.00152]
[1772945586845,0.03034835,66860.0,66855.0,0.00015]
[1772945587097,0.02728197,66859.0,66855.0,0.00015]
[1772945587695,0.02728197,66855.0,66843.0,0.0002]
[1772945587900,0.0747848,66859.0,66832.0,0.1762988]
[1772945587901,0.04472693,66850.0,66832.0,0.0002988]
[1772945588120,0.0747848,66859.0,66831.0,0.0002]
[1772945588121,0.0239133,66847.0,66831.0,0.0002]
[1772945588326,0.02728197,66844.0,66833.0,0.00152]
[1772945588495,0.02728197,66842.0,66833.0,0.00152]
[1772945588841,0.02728197,66838.0,66834.0,0.00152]
[1772945588985,0.05153051,66836.0,66835.0,0.00152]
[1772945589243,0.02882835,66835.0,66826.0,0.07482061]
[1772945589415,0.02882835,66835.0,66827.0,0.00152]
[1772945589835,0.00632508,66835.0,66827.0,0.00152]
[1772945590167,0.00024508,66835.0,66827.0,0.00152]
[1772945590374,0.0750567,66835.0,66827.0,0.00152]
[1772945590702,0.00024508,66835.0,66827.0,0.00152]
[1772945590922,0.00151996,66834.0,66826.0,0.07482061]
[1772945591274,0.07480505,66841.0,66826.0,0.07482061]
[1772945591275,0.07479347,66851.0,66828.0,0.02277333]
[1772945591403,0.07479347,66851.0,66832.0,0.02277333]
[1772945591404,0.07479401,66851.0,66832.0,0.02277333]
[1772945591758,0.07479401,66851.0,66834.0,0.02277333]
[1772945591963,0.07479401,66851.0,66836.0,0.02277333]
[1772945592319,0.07479401,66851.0,66833.0,0.00152]
[1772945592554,0.04472693,66850.0,66834.0,0.00152]
[1772945592966,0.04472693,66850.0,66829.0,0.07481684]
[1772945593154,0.04624689,66850.0,66828.0,0.09771153]
[1772945593330,0.04624689,66850.0,66829.0,0.00152]
[1772945593952,0.07479655,66848.0,66830.0,0.07481669]
[1772945595024,0.05153051,66847.0,66830.0,0.07481669]
[1772945595235,0.07479655,66848.0,66835.0,0.0002]
[1772945596079,0.07478424,66859.0,66836.0,0.00152]
[1772945596376,0.05153051,66854.0,66836.0,0.00152]
[1772945596580,0.07478424,66859.0,66837.0,0.00152]
[1772945597204,0.00151996,66854.0,66837.0,0.00152]
[1772945597401,0.00151996,66854.0,66835.0,0.0002]
[1772945597606,0.00151996,66854.0,66828.0,0.00032039]
[1772945597607,0.04472693,66850.0,66828.0,0.00032039]
[1772945597989,0.07479543,66849.0,66828.0,0.00032039]
[1772945598211,0.02728197,66848.0,66829.0,0.00152]
[1772945598414,0.07479543,66849.0,66829.0,0.00152]
[1772945598582,0.05153051,66848.0,66829.0,0.00152]
[1772945598782,0.07479543,66849.0,66829.0,0.00152]
[1772945599187,0.07479543,66849.0,66830.0,0.00152]
[1772945599604,0.07479543,66849.0,66831.0,0.00152]
[1772945600013,0.07479767,66847.0,66831.0,0.00152]
[1772945600218,0.05153051,66846.0,66831.0,0.00152]
[1772945600536,0.07479767,66847.0,66831.0,0.00152]
[1772945602061,0.07479991,66845.0,66831.0,0.00152]
[1772945602467,0.04477127,66841.0,66825.0,0.0004]
[1772945602642,0.04477127,66841.0,66826.0,0.00152]
[1772945602847,0.04477127,66841.0,66824.0,0.0002]
[1772945603048,0.04484927,66841.0,66824.0,0.0002]
[1772945603251,0.04484927,66841.0,66825.0,0.00152]
[1772945603450,7.8e-05,66841.0,66825.0,0.00152]
[1772945603758,0.04629123,66840.0,66825.0,0.00152]
[1772945604159,0.07480774,66838.0,66825.0,0.00152]
[1772945604762,0.04477127,66835.0,66806.0,0.097616]
[1772945605036,0.07480774,66838.0,66802.0,0.07484761]
[1772945605037,0.02728197,66826.0,66802.0,0.07484761]
[1772945605376,0.07632774,66838.0,66801.0,0.0002407]
[1772945605377,0.02424854,66832.0,66810.0,0.00152]
[1772945605677,0.02424854,66836.0,66812.0,0.0259151]
[1772945605853,0.07480774,66838.0,66812.0,0.0259151]
[1772945605854,0.02424854,66832.0,66813.0,0.02277333]
[1772945606054,0.02424854,66831.0,66813.0,0.02277333]
[1772945606257,0.07481669,66830.0,66813.0,0.02277333]
[1772945606458,0.02424854,66829.0,66813.0,0.02277333]
[1772945607000,0.02424854,66829.0,66809.0,0.00575]
[1772945607001,0.02728197,66822.0,66798.0,0.07485171]
[1772945607204,0.02424854,66819.0,66802.0,0.00152]
[1772945607415,0.02424854,66819.0,66793.0,0.07485792]
[1772945607416,0.02728197,66810.0,66766.0,0.0748884]
[1772945607631,0.02424854,66807.0,66785.0,0.00152]
[1772945607844,0.02424854,66805.0,66785.0,0.00152]
[1772945608082,0.02424854,66805.0,66790.0,0.02277333]
[1772945608279,0.09909435,66804.0,66791.0,0.00148]
[1772945609017,0.02728197,66807.0,66791.0,0.00148]
[1772945609018,0.07484021,66809.0,66793.0,0.0259151]
[1772945609220,0.07484021,66809.0,66796.0,0.02277333]
[1772945609423,0.07484021,66809.0,66798.0,0.04868843]
[1772945609596,0.07484021,66809.0,66799.0,0.00148]
[1772945609975,0.07484021,66809.0,66800.0,0.0259151]
[1772945610180,0.02424854,66821.0,66803.0,0.04868843]
[1772945611582,0.02728197,66818.0,66790.0,0.00059997]
[1772945611782,0.02424854,66815.0,66790.0,0.00059997]
[1772945612034,0.02424854,66811.0,66783.0,0.0002]
[1772945612326,0.02728197,66806.0,66789.0,0.00148]